bitfinex/quotes_ETHUSD_20250131
["timestamp","ask_amount","ask_price","bid_price","bid_amount"]
[1738351394673,0.58998242,3315.5,3314.8,0.79445975]
[1738351394995,0.229,3316.2,3314.8,0.7643]
[1738351395349,0.015,3316.1,3314.8,0.7643]
[1738351395652,0.0075,3316.1,3314.9,0.58015709]
[1738351395875,0.0075,3316.1,3314.8,0.7643]
[1738351396046,0.0075,3315.7,3314.8,0.7643]
[1738351396243,0.59312646,3315.8,3314.8,0.7643]
[1738351396471,0.0075,3316.1,3315.0,0.8086]
[1738351396669,0.6803,3316.3,3315.1,3.0]
[1738351396885,0.015,3316.2,3315.2,0.73734085]
[1738351397145,0.61582293,3315.9,3315.2,0.73734085]
[1738351397989,0.0075,3315.8,3315.2,0.73734085]
[1738351398289,0.0075,3315.5,3314.3,0.7736]
[1738351398497,0.015,3315.3,3314.3,0.7736]
[1738351398655,0.015,3315.3,3313.8,3.56480854]
[1738351398656,0.6803,3315.0,3313.9,0.7838]
[1738351398850,0.015,3314.9,3314.0,0.43486085]
[1738351399373,0.015,3314.9,3313.9,0.7838]
[1738351399686,0.6803,3315.8,3314.3,3.7953]
[1738351399895,0.6803,3315.8,3314.4,0.03016173]
[1738351400064,0.6803,3315.8,3314.3,3.7953]
[1738351400246,0.6803,3315.8,3314.4,0.55]
[1738351400452,0.015,3315.6,3314.5,0.43453]
[1738351400681,0.015,3315.6,3314.3,0.7953]
[1738351400894,0.015,3315.4,3314.3,0.7953]
[1738351401566,3.0311,3315.6,3314.3,0.7953]
[1738351401909,0.015,3315.4,3314.3,0.7953]
[1738351402384,3.01619,3315.5,3314.3,0.7953]
[1738351402710,0.60000784,3315.2,3314.4,0.03016531]
[1738351402995,0.229,3315.7,3314.3,0.7953]
[1738351403351,0.015,3315.6,3314.4,0.03016086]
[1738351403551,0.015,3315.6,3314.3,0.7953]
[1738351403753,0.015,3315.6,3314.4,0.03016087]
[1738351404193,0.0075,3315.6,3314.4,0.58016087]
[1738351404394,0.6803,3315.8,3314.5,0.7894]
[1738351404696,0.0075,3315.7,3314.5,0.7894]
[1738351405003,0.0075,3315.5,3314.5,0.7894]
[1738351405666,0.6803,3315.8,3314.5,0.7894]
[1738351405667,0.015,3315.7,3314.6,0.0301599]
[1738351406001,0.015,3315.7,3314.5,0.7894]
[1738351409613,0.6803,3315.5,3313.7,0.8014]
[1738351409770,0.015,3315.3,3313.7,0.8014]
[1738351409970,0.015,3315.3,3313.8,0.55]
[1738351410574,0.0075,3315.3,3313.8,0.55]
[1738351410774,0.0075,3315.3,3313.9,0.43514]
[1738351411113,0.5941371,3315.1,3313.9,0.43514]
[1738351411413,0.6803,3315.2,3314.1,0.8126]
[1738351411621,3.01564,3316.1,3314.1,0.8126]
[1738351411622,0.229,3315.8,3314.2,3.58016308]
[1738351411774,0.59999275,3315.6,3314.2,3.58016048]
[1738351411973,0.0075,3315.5,3314.2,3.55]
[1738351412572,0.0075,3315.5,3314.2,3.0]
[1738351412573,0.6953,3315.5,3314.2,3.0]
[1738351412816,0.6953,3315.5,3314.3,0.76906146]
[1738351414017,0.6953,3315.5,3314.2,3.0]
[1738351414018,3.05393109,3315.4,3314.1,0.8126]
[1738351414187,0.015,3315.1,3313.7,0.7768]
[1738351414606,0.05270131,3315.1,3313.7,0.7768]
[1738351414917,0.015,3314.9,3313.8,0.46548146]
[1738351415281,0.015,3314.7,3313.8,0.46548146]
[1738351415503,3.03194,3314.7,3313.3,0.8097]
[1738351415706,0.015,3314.5,3313.3,0.8097]
[1738351416393,0.0075,3314.0,3312.7,0.8117]
[1738351416606,0.015,3314.0,3312.7,0.8117]
[1738351416810,0.015,3314.0,3312.8,0.03017805]
[1738351417132,0.6803,3314.1,3312.8,0.58017805]
[1738351417331,0.6803,3314.1,3313.0,0.55]
[1738351418196,0.6803,3314.4,3313.3,1.3131]
[1738351419235,0.6803,3314.4,3313.4,0.03016954]
[1738351419447,0.6803,3314.4,3313.3,1.3131]
[1738351419649,0.6803,3314.4,3313.4,0.43131]
[1738351421022,0.0075,3314.3,3313.4,0.43131]
[1738351421194,0.015,3314.3,3313.4,0.43131]
[1738351421697,0.015,3314.3,3312.9,1.24548781]
[1738351421903,0.015,3314.3,3312.9,0.8063]
[1738351422641,0.0075,3314.1,3312.9,3.8063]
[1738351423235,0.6803,3314.2,3313.3,3.0]
[1738351423607,0.0075,3314.6,3313.7,3.0]
[1738351426409,0.0075,3314.6,3313.8,0.03016886]
[1738351426610,0.0075,3314.6,3313.9,0.30301689]
[1738351426913,0.015,3314.4,3313.3,3.0]
[1738351427125,0.6803,3314.3,3313.2,3.56963846]
[1738351427323,0.6803,3314.3,3311.7,0.96765339]
[1738351427324,0.0075,3314.0,3312.8,3.56963846]
[1738351427644,0.015,3313.7,3312.9,0.35696385]
[1738351427807,0.015,3313.7,3312.9,3.35696385]
[1738351428249,0.015,3313.7,3312.9,3.38714118]
[1738351428410,0.015,3313.7,3312.9,3.35696385]
[1738351430146,0.015,3313.7,3312.9,3.38714118]
[1738351430339,0.015,3313.7,3313.0,0.69567796]
[1738351431048,0.015,3313.7,3313.1,0.03017733]
[1738351431620,0.015,3313.7,3313.0,0.69567796]
[1738351431947,0.015,3313.7,3312.3,1.39475604]
[1738351431948,0.05270131,3313.7,3312.4,3.56963846]
[1738351432155,0.015,3313.5,3312.4,3.56963846]
[1738351432511,0.015,3313.5,3312.5,3.0]
[1738351434951,0.0075,3313.5,3312.5,3.0]
[1738351435154,0.6803,3313.6,3312.9,3.0]
[1738351435450,0.62095077,3313.5,3312.4,3.56963846]
[1738351435657,0.62095077,3313.5,3312.5,3.0]
[1738351436217,0.0075,3313.5,3312.9,3.0]
[1738351436456,0.0075,3313.5,3313.0,0.65696385]
[1738351437117,0.6803,3313.6,3313.0,0.65696385]
[1738351437954,0.0075,3314.0,3313.3,3.0]
[1738351437955,0.6803,3314.0,3313.3,3.0]
[1738351438140,0.6803,3314.0,3313.6,3.56963846]
[1738351438341,0.6803,3314.7,3313.7,3.0]
[1738351438543,1.29500903,3314.7,3313.8,0.0301714]
[1738351438859,0.0075,3314.6,3314.1,3.0]
[1738351439958,0.0075,3314.6,3313.7,3.65696385]
[1738351440158,0.0075,3314.6,3313.8,0.03016867]
[1738351440333,0.0075,3314.6,3313.7,3.65696385]
[1738351440544,0.015,3314.6,3313.7,3.65696385]
[1738351440870,0.0075,3314.6,3313.8,0.72266023]
[1738351441040,0.6803,3314.7,3313.8,0.72266023]
[1738351441681,0.015,3314.6,3313.7,3.0]
[1738351441973,0.62378149,3314.6,3313.7,3.0]
[1738351442131,0.0075,3314.4,3313.3,3.0]
[1738351442471,0.015,3314.1,3313.4,0.65696385]
[1738351442795,0.60878149,3314.6,3313.7,3.0]
[1738351443085,1.28908149,3314.6,3313.7,3.0]
[1738351443624,0.015,3314.5,3313.7,3.0]
[1738351443829,0.015,3314.5,3313.6,3.56963846]
[1738351443830,0.6803,3315.8,3314.1,3.0]
[1738351444033,0.03770131,3315.7,3314.4,3.56963846]
[1738351444228,0.59748987,3315.2,3314.4,3.56963846]
[1738351444434,0.6803,3315.0,3314.4,3.56963846]
[1738351444667,0.015,3314.9,3314.1,3.0]
[1738351445575,0.0075,3314.7,3314.1,3.0]
[1738351445949,0.0075,3314.7,3314.1,3.65696385]
[1738351446354,0.0075,3314.7,3314.1,3.0]
[1738351447452,0.0075,3314.7,3313.7,3.0]
[1738351447649,0.0075,3314.5,3313.7,3.0]
[1738351447872,0.0075,3314.5,3313.4,0.65696385]
[1738351448109,0.0075,3314.3,3313.4,0.65696385]
[1738351448408,0.0075,3314.3,3313.8,0.22438172]
[1738351449110,0.0075,3314.3,3313.8,0.22438172]
[1738351449524,3.01603,3315.7,3313.8,0.22438172]
[1738351449678,0.6803,3315.4,3313.8,1.42638374]
[1738351449872,0.6803,3314.8,3313.9,0.22438172]
[1738351450932,0.6803,3314.8,3314.5,3.0]
[1738351451083,0.6803,3314.8,3314.6,0.68712717]
[1738351451278,0.6803,3314.8,3313.9,0.22438172]
[1738351451279,0.6803,3314.8,3314.0,3.56963846]
[1738351451504,0.6803,3315.4,3314.1,3.03016571]
[1738351451720,0.6803,3315.4,3314.5,3.0]
[1738351452008,0.015,3315.3,3314.5,3.0]
[1738351452309,0.015,3315.3,3314.0,3.79402018]
[1738351452310,0.0075,3315.1,3314.0,3.79402018]
[1738351452484,0.0075,3315.1,3314.1,3.37940202]
[1738351452875,0.0075,3315.1,3314.2,0.03016555]
[1738351453441,0.6803,3315.2,3314.5,3.0]
[1738351454276,0.015,3315.1,3314.1,0.37940202]
[1738351454487,0.015,3315.1,3314.6,0.22438172]
[1738351454710,0.015,3314.9,3314.6,0.22438172]
[1738351455535,0.62905891,3314.9,3314.6,0.22438172]
[1738351456035,0.015,3314.7,3314.6,0.22438172]
[1738351456197,0.015,3314.7,3313.9,0.22438172]
[1738351456585,0.015,3314.7,3314.0,0.03016895]
[1738351456823,0.015,3314.7,3313.9,0.22438172]
[1738351457936,0.0075,3314.3,3314.0,0.22438172]
[1738351458102,0.6803,3314.4,3314.0,0.22438172]
[1738351458999,0.0075,3314.3,3314.0,0.22438172]
[1738351459266,0.6803,3314.4,3314.1,0.22438172]
[1738351460243,0.6803,3314.4,3314.2,0.22438172]
[1738351460744,0.015,3314.3,3314.2,0.22438172]
[1738351461642,0.015,3314.3,3313.3,3.22438172]
[1738351461847,0.015,3314.3,3313.4,0.67940202]
[1738351462007,0.05270131,3314.3,3312.8,3.56963846]
[1738351462210,0.015,3313.9,3312.8,3.56963846]
[1738351462552,0.015,3313.9,3312.9,3.0]
[1738351462553,0.0075,3313.9,3312.9,3.0]
[1738351462846,0.6803,3314.0,3312.9,3.0]
[1738351462847,0.6803,3314.8,3313.7,3.0]
[1738351463142,0.0075,3314.7,3313.8,0.65696385]
[1738351463493,0.0075,3314.7,3313.9,0.03016761]
[1738351463725,0.0075,3314.7,3313.8,0.65696385]
[1738351463927,0.6803,3314.8,3314.0,3.56963846]
[1738351464123,0.6803,3315.1,3314.5,3.0]
[1738351464440,0.6803,3315.1,3314.6,0.65696385]
[1738351464793,0.0075,3315.4,3314.6,0.65696385]
[1738351465495,0.0075,3315.4,3314.9,3.0]
[1738351466929,0.0075,3315.4,3314.6,0.65696385]
[1738351467827,0.015,3315.4,3314.6,0.65696385]
[1738351468028,0.015,3315.4,3314.7,0.36871246]
[1738351468223,0.0075,3315.4,3314.8,0.03016304]
[1738351468745,0.0075,3315.4,3314.7,0.36871246]
[1738351468944,0.015,3315.4,3314.5,3.0]
[1738351469623,0.6953,3315.4,3314.0,3.56963846]
[1738351470148,0.6953,3315.4,3314.5,3.0]
[1738351470348,0.6878,3315.4,3314.5,3.03016269]
[1738351470491,0.6878,3315.4,3314.6,0.65998012]
[1738351472493,0.6878,3315.4,3314.7,0.03016122]
[1738351472899,0.6803,3315.4,3314.6,0.65998012]
[1738351473244,0.0075,3315.6,3314.6,0.65998012]
[1738351473395,0.0075,3315.6,3314.9,3.0]
[1738351473595,0.6803,3315.7,3315.0,0.65696385]
[1738351473848,0.6803,3315.7,3315.3,3.0]
[1738351473995,0.4722388,3317.1,3315.3,3.0]
[1738351473996,0.6803,3316.4,3315.7,3.0]
[1738351474196,0.015,3316.3,3315.7,3.0]
[1738351474971,0.0075,3316.3,3315.7,3.0]
[1738351475151,0.0075,3316.3,3315.7,3.65696385]
[1738351476018,0.0075,3316.3,3315.3,3.0]
[1738351476835,0.0075,3316.3,3315.7,3.0]
[1738351477159,0.0075,3316.3,3315.7,3.03015356]
[1738351477719,0.6803,3316.4,3315.7,3.03015356]
[1738351477966,0.6803,3316.8,3316.1,3.0]
[1738351478178,0.6803,3317.7,3316.6,3.0]
[1738351478328,0.6803,3317.7,3316.7,0.03014428]
[1738351478522,0.015,3317.6,3316.6,3.0]
[1738351478727,0.6803,3317.3,3315.9,0.78]
[1738351479080,0.0075,3316.9,3315.7,3.56963846]
[1738351479275,0.015,3316.9,3315.9,0.43496385]
[1738351479426,0.015,3316.9,3316.0,0.03014895]
[1738351479632,0.6803,3317.0,3316.0,0.03014895]
[1738351479633,0.6803,3317.0,3316.2,3.0]
[1738351480075,0.6953,3317.5,3316.3,0.78]
[1738351480283,0.6953,3317.5,3316.4,0.378]
[1738351480642,0.6953,3317.5,3316.5,3.59978242]
[1738351480975,0.59946029,3318.1,3317.0,3.78]
[1738351481140,0.0075,3318.0,3317.0,3.81013998]
[1738351481327,3.01299,3319.0,3317.0,3.81013998]
[1738351481328,2.12814362,3318.6,3317.9,3.0]
[1738351481526,0.6803,3318.7,3318.0,0.65696385]
[1738351481733,1.50950021,3318.8,3318.3,3.0]
[1738351481947,0.6803,3319.1,3318.3,0.03013032]
[1738351482248,0.6803,3319.1,3318.0,0.65696385]
[1738351482249,0.6803,3319.1,3318.1,0.03012896]
[1738351482453,3.01149,3320.7,3318.3,3.0]
[1738351482645,0.6803,3319.7,3318.3,5.12510091]
[1738351483178,0.6803,3319.7,3318.3,5.12509933]
[1738351483479,0.6803,3319.7,3318.3,5.09497674]
[1738351483696,0.6803,3320.4,3319.1,3.7923]
[1738351484185,0.6803,3320.0,3318.6,4.36183846]
[1738351484343,0.6803,3320.0,3318.7,0.43618385]
[1738351484344,0.015,3319.9,3318.7,0.43618385]
[1738351484547,0.015,3319.9,3318.7,3.43618385]
[1738351484749,0.0075,3319.9,3319.1,3.0]
[1738351484952,0.6803,3320.0,3319.2,0.03012178]
[1738351485277,0.6803,3320.0,3319.1,3.0]
[1738351485478,0.015,3319.9,3318.7,0.43618385]
[1738351485783,0.015,3319.9,3318.7,3.43618385]
[1738351485970,0.6803,3320.0,3319.1,3.0]
[1738351486171,0.015,3319.9,3318.7,0.43618385]
[1738351486474,0.015,3319.7,3318.7,3.0]
[1738351486682,0.015,3319.5,3318.2,0.76]
[1738351486853,0.015,3319.5,3318.2,3.76]
[1738351487191,0.015,3319.3,3318.2,3.0]
[1738351487494,0.015,3319.3,3318.1,3.56963846]
[1738351487674,0.0075,3319.1,3318.1,3.59976844]
[1738351487861,3.69195,3320.5,3318.7,0.7968]
[1738351488187,0.6803,3320.4,3318.9,3.56963846]
[1738351488387,0.015,3320.3,3319.0,0.030121]
[1738351488561,0.015,3320.3,3319.3,3.56963846]
[1738351488759,0.6803,3320.4,3319.7,3.56963846]
[1738351488958,0.6803,3320.4,3319.8,0.03011437]
[1738351489189,1.28123109,3321.2,3320.1,3.56963846]
[1738351489390,0.229,3321.6,3319.7,3.56963846]
[1738351489391,0.6803,3321.0,3319.7,3.56963846]
[1738351489626,0.6803,3321.0,3319.8,0.03011536]
[1738351489786,0.6803,3321.0,3320.1,3.56963846]
[1738351489988,0.0075,3320.9,3320.2,3.03011116]
[1738351490190,0.6803,3321.0,3320.2,3.03011116]
[1738351490693,0.0075,3321.3,3320.3,0.7545]
[1738351490927,0.6803,3321.4,3320.6,3.0]
[1738351491137,0.6803,3322.2,3320.7,0.71643852]
[1738351491619,0.0075,3322.1,3320.8,0.55]
[1738351491817,0.0075,3322.1,3320.9,0.03010335]
[1738351492207,0.0075,3322.1,3320.8,0.55]
[1738351492398,0.0075,3322.1,3320.9,0.03010092]
[1738351494049,0.0075,3322.1,3320.8,0.55]
[1738351494225,0.0075,3322.1,3320.9,0.03010095]
[1738351494608,0.6803,3322.2,3321.0,0.03010095]
[1738351494859,0.6803,3322.6,3321.1,4.3591]
[1738351495015,0.6803,3322.6,3321.2,0.85534917]
[1738351495959,0.6803,3322.6,3321.5,0.59110151]
[1738351496117,0.6803,3322.6,3321.6,0.58009522]
[1738351496318,0.6803,3322.6,3321.6,0.03009522]
[1738351496518,0.0075,3322.5,3321.2,0.82525359]
[1738351496751,0.0075,3322.5,3321.3,0.46343536]
[1738351496991,0.0075,3322.5,3321.4,0.55]
[1738351497611,0.0075,3322.5,3321.3,0.46343536]
[1738351497812,0.015,3322.5,3321.2,0.82525359]
[1738351498050,0.015,3322.5,3321.1,0.8091]
[1738351498571,0.0075,3322.3,3320.7,0.811]
[1738351498957,0.0075,3322.3,3320.8,0.55]
[1738351499330,0.015,3322.3,3320.8,0.55]
[1738351500126,3.02498,3322.3,3320.7,0.811]
[1738351500447,0.0075,3322.0,3320.8,0.03010197]
[1738351500773,0.0075,3322.0,3320.7,0.811]
[1738351501774,3.02496,3322.3,3320.7,0.811]
[1738351501973,3.02496,3322.3,3320.8,3.0]
[1738351502179,3.01014,3322.2,3320.7,0.811]
[1738351502510,0.0075,3321.9,3320.6,8.76]
[1738351502697,0.6803,3322.0,3321.2,0.55]
[1738351502837,0.6803,3322.4,3321.4,0.55]
[1738351503031,0.6803,3322.8,3321.6,0.55]
[1738351503231,0.6803,3322.8,3321.8,0.55]
[1738351504159,0.6803,3322.8,3321.8,0.58009341]
[1738351504367,0.6803,3322.8,3321.8,0.55]
[1738351504586,0.0125,3323.4,3321.8,0.55]
[1738351504587,0.6803,3323.3,3322.0,0.55]
[1738351504747,0.6803,3323.3,3322.1,3.03009023]
[1738351504947,0.6803,3323.3,3322.3,0.55]
[1738351505201,0.6803,3323.3,3322.4,0.03009028]
[1738351505410,0.6803,3323.3,3322.3,0.55]
[1738351505697,0.005,3323.4,3322.4,8.79008814]
[1738351505853,0.005,3323.4,3322.5,3.55]
[1738351506198,0.005,3323.4,3322.7,0.55]
[1738351506398,0.005,3323.4,3322.9,0.55]
[1738351506907,0.005,3323.4,3323.1,3.55]
[1738351507204,0.005,3323.4,3323.1,3.0]
[1738351507547,0.005,3323.4,3323.2,0.03008334]
[1738351507782,0.005,3323.4,3323.3,0.36411377]
[1738351508004,0.005,3323.4,3323.3,0.91411377]
[1738351508997,0.005,3323.4,3323.3,0.94419438]
[1738351509370,0.005,3323.4,3323.3,0.91411377]
[1738351510000,0.005,3323.4,3323.3,0.36411377]
[1738351510983,0.005,3323.4,3322.9,8.76]
[1738351511789,0.005,3323.4,3322.6,1.231]
[1738351511790,0.005,3323.4,3323.0,0.03008785]
[1738351512096,0.0125,3323.4,3322.1,8.76]
[1738351512266,0.005,3323.4,3322.3,0.55]
[1738351512467,0.005,3323.4,3322.4,0.03008821]
[1738351512672,0.005,3323.4,3322.4,0.33309703]
[1738351513106,0.005,3323.4,3322.6,3.0]
[1738351513257,0.005,3323.4,3322.7,0.58008498]
[1738351513595,0.005,3323.4,3322.9,0.55]
[1738351514464,0.005,3323.4,3322.6,3.0]
[1738351514664,0.005,3323.4,3322.7,0.68633349]
[1738351515276,0.005,3323.4,3322.8,0.55]
[1738351516685,0.005,3323.4,3323.0,3.0]
[1738351520299,0.005,3323.4,3323.1,0.03008417]
[1738351520502,0.005,3323.4,3323.0,3.0]
[1738351520678,0.005,3323.4,3323.1,0.65479197]
[1738351521919,0.005,3323.4,3323.3,3.5479197]
[1738351522081,0.005,3323.4,3323.3,15.3079197]
[1738351522418,0.005,3323.4,3323.3,15.8579197]
[1738351522573,0.005,3323.4,3323.3,15.89797404]
[1738351522773,0.005,3323.4,3323.3,17.63313064]
[1738351523514,0.005,3323.4,3323.3,19.00853064]
[1738351523882,0.6803,3324.7,3323.3,19.00853064]
[1738351524216,0.6803,3325.9,3324.3,3.0]
[1738351524428,0.6803,3325.9,3324.4,0.65479197]
[1738351524593,0.228,3326.0,3324.4,0.65479197]
[1738351524594,0.6953,3325.5,3324.4,0.65479197]
[1738351524913,0.6878,3325.5,3324.5,0.03007334]
[1738351525120,0.6878,3325.5,3324.7,3.0]
[1738351525323,0.6803,3325.5,3324.8,0.68486077]
[1738351525474,0.6803,3325.5,3325.1,3.0]
[1738351525822,0.6803,3326.5,3325.4,3.5479197]
[1738351525976,0.6803,3326.5,3325.5,3.35479197]
[1738351526175,0.015,3326.4,3325.5,3.35479197]
[1738351526485,0.015,3326.4,3325.9,3.0]
[1738351526804,0.6803,3326.5,3325.9,3.03006395]
[1738351527000,0.6803,3326.5,3325.9,3.0]
[1738351527187,0.1676493,3326.9,3326.3,3.0]
[1738351527510,0.1676493,3326.9,3326.2,3.5479197]
[1738351527711,0.015,3326.8,3326.0,0.65479197]
[1738351527912,0.015,3326.6,3325.4,3.5479197]
[1738351528111,0.052576,3326.6,3325.4,3.5479197]
[1738351528412,0.052576,3326.6,3325.5,3.35479197]
[1738351528413,0.6803,3326.5,3325.5,3.35479197]
[1738351528619,0.015,3326.1,3325.5,3.0]
[1738351529489,0.015,3326.1,3325.5,3.03006561]
[1738351529670,0.015,3326.1,3325.5,3.0]
[1738351529873,0.6803,3326.2,3325.5,3.0]
[1738351530213,0.6803,3326.8,3325.9,3.0]
[1738351530412,0.1676493,3326.9,3326.8,3.0]
[1738351530886,0.1676493,3326.9,3326.3,3.5479197]
[1738351531416,0.1676493,3326.9,3326.8,3.5479197]
[1738351531575,0.1676493,3326.9,3326.4,3.5479197]
[1738351531776,0.0075,3326.7,3326.5,3.0]
[1738351532177,0.6803,3326.8,3326.5,3.0]
[1738351533320,0.6803,3326.8,3325.5,0.8213]
[1738351533321,0.6803,3326.8,3325.6,3.5479197]
[1738351533485,0.6803,3326.5,3325.2,3.5479197]
[1738351533697,0.0075,3326.2,3325.2,0.35479197]
[1738351533877,0.0075,3326.0,3324.8,3.5479197]
[1738351534078,0.6803,3325.9,3324.5,0.59284792]
[1738351534325,0.0075,3325.4,3324.0,12.3079197]
[1738351534535,0.015,3325.1,3324.0,3.5479197]
[1738351534759,0.015,3325.1,3323.8,8.76]
[1738351534760,0.6803,3325.0,3323.8,8.76]
[1738351534935,0.6803,3326.2,3324.2,0.754]
[1738351535246,0.6803,3326.2,3324.6,3.0]
[1738351535549,0.6803,3326.2,3324.6,3.0300663]
[1738351535717,0.6803,3326.2,3325.1,3.0]
[1738351536040,0.015,3326.1,3325.1,3.0]
[1738351536343,0.015,3326.1,3325.2,0.68554407]
[1738351536555,0.015,3325.9,3325.1,3.0]
[1738351536709,0.6803,3326.0,3324.8,3.0]
[1738351537152,0.6803,3326.0,3325.1,3.85544072]
[1738351537448,0.6803,3326.8,3325.7,3.0]
[1738351538216,0.6803,3326.8,3325.8,0.03005895]
[1738351538398,0.6803,3326.8,3325.9,0.30300589]
[1738351538599,0.6803,3326.8,3326.0,0.03005895]
[1738351539436,0.6803,3326.8,3326.0,0.03005894]
[1738351540348,3.00482,3328.0,3325.9,0.30300589]
[1738351540349,0.59311066,3327.9,3326.6,3.85544072]
[1738351540639,0.59311066,3327.9,3326.7,3.0]
[1738351540640,0.6803,3327.4,3326.7,3.0]
[1738351541339,0.6803,3327.4,3326.1,3.85544072]
[1738351542065,0.6803,3327.4,3326.7,3.0]
[1738351542634,0.6803,3327.4,3326.1,3.85544072]
[1738351542845,0.6803,3327.4,3326.2,3.0]
[1738351543842,0.6803,3326.8,3326.2,3.0]
[1738351544047,0.6803,3326.8,3326.3,0.62017906]
[1738351544443,0.6803,3326.8,3326.2,3.0]
[1738351544679,0.6803,3326.8,3325.9,0.30300589]
[1738351545109,0.6803,3326.8,3326.0,0.03005897]
[1738351545302,0.6803,3326.8,3326.2,3.0]
[1738351547144,0.6803,3326.8,3325.9,0.30300589]
[1738351547145,0.015,3326.7,3325.9,0.30300589]
[1738351547330,0.015,3326.7,3325.6,12.61544072]
[1738351547541,0.6803,3326.6,3325.6,3.85544072]
[1738351547744,0.015,3326.3,3325.0,3.85544072]
[1738351548052,0.015,3326.3,3325.1,3.0]
[1738351548731,0.0075,3326.3,3325.0,3.85544072]
[1738351548938,0.6803,3326.2,3324.5,3.85544072]
[1738351549304,0.6803,3326.2,3325.1,3.0]
[1738351549610,0.015,3326.1,3325.1,3.0]
[1738351551680,0.015,3326.1,3325.2,0.03006817]
[1738351552437,0.6803,3326.2,3325.2,0.03006817]
[1738351552680,0.6803,3326.2,3325.6,3.0]
[1738351552981,0.6803,3326.2,3325.6,11.7900624]
[1738351553165,0.6803,3326.8,3326.1,3.0]
[1738351553353,0.6803,3326.8,3326.2,0.03005933]
[1738351553575,0.6803,3326.8,3326.1,11.76]
[1738351553894,0.1676493,3326.9,3326.2,1.59160091]
[1738351554079,0.1676493,3326.9,3326.6,3.0]
[1738351556297,0.1676493,3326.9,3326.0,3.85544072]
[1738351556500,0.015,3326.8,3326.0,3.85544072]
[1738351556664,0.015,3326.6,3325.7,8.76]
[1738351556859,0.015,3326.6,3325.7,10.02154407]
[1738351557101,0.015,3326.6,3325.8,3.0]
[1738351557303,0.015,3326.4,3325.8,3.0]
[1738351558500,0.015,3326.2,3325.0,3.85544072]
[1738351558798,0.015,3326.2,3325.1,0.03006656]
[1738351559101,0.015,3326.2,3325.2,0.38855073]
[1738351559907,0.6803,3326.3,3325.5,3.85544072]
[1738351560084,0.6803,3326.3,3325.6,3.0]
[1738351560286,0.6803,3326.3,3325.7,0.03006393]
[1738351560455,0.6803,3326.3,3325.6,3.0]
[1738351560662,0.6803,3326.3,3325.7,0.68554407]
[1738351562549,0.6803,3326.3,3325.8,0.03006111]
[1738351562831,0.6803,3326.7,3326.1,3.0]
[1738351563402,1.5607395,3326.6,3326.1,3.0]
[1738351563727,1.51941038,3326.4,3325.7,3.68554407]
[1738351563948,1.51941038,3326.4,3325.8,1.24455441]
[1738351564518,1.51941038,3326.4,3325.7,0.68554407]
[1738351564768,1.56131697,3326.2,3325.6,3.0]
[1738351564931,2.25940142,3326.1,3325.6,3.0]
[1738351565308,1.5607395,3326.6,3325.6,3.0]
[1738351565523,1.5607395,3326.6,3325.7,0.03006023]
[1738351565717,0.6803,3326.7,3325.7,0.03006023]
[1738351565922,0.6803,3326.7,3325.8,0.30300602]
[1738351566111,0.6803,3326.7,3325.9,0.03005967]
[1738351566295,0.6803,3326.7,3326.1,3.0]
[1738351567106,0.015,3326.4,3325.5,3.85544072]
[1738351567434,0.6803,3326.3,3325.2,0.38855073]
[1738351567637,0.015,3326.1,3325.2,0.38855073]
[1738351567841,0.015,3325.9,3325.2,0.38855073]
[1738351568294,0.015,3325.9,3325.3,0.33885507]
[1738351568501,0.015,3325.9,3325.2,0.38855073]
[1738351568945,0.6803,3325.8,3325.1,3.0]
[1738351569129,0.05258922,3325.7,3324.5,3.85544072]
[1738351569448,0.015,3325.5,3324.5,3.85544072]
[1738351569646,0.015,3325.5,3324.6,0.38554407]
[1738351569851,0.015,3325.5,3324.5,3.85544072]
[1738351570518,0.6803,3325.6,3324.6,3.03007199]
[1738351570722,0.6803,3325.6,3324.6,3.0]
[1738351571449,0.015,3325.5,3324.6,3.0]
[1738351571608,0.6803,3325.6,3324.6,3.0]
[1738351571609,0.6803,3325.6,3324.7,0.71561661]
[1738351571803,0.6803,3325.6,3324.7,0.68554407]
[1738351572005,0.6803,3325.6,3325.1,3.0]
[1738351574265,0.015,3325.5,3324.6,3.0]
[1738351574464,0.015,3325.5,3324.6,3.68554407]
[1738351574666,0.015,3325.5,3325.0,3.0]
[1738351575718,0.6803,3325.6,3325.0,3.0]
[1738351575958,0.6803,3326.7,3325.4,3.0]
[1738351576164,0.6803,3326.4,3325.4,3.0]
[1738351576364,0.6953,3326.0,3325.0,8.76]
[1738351576520,0.6953,3326.0,3325.3,3.54398238]
[1738351576868,0.6953,3326.0,3325.4,3.0]
[1738351577169,0.03758841,3325.9,3325.0,3.0]
[1738351577465,0.6953,3325.8,3325.0,3.0]
[1738351578054,0.6953,3325.8,3325.0,3.65439824]
[1738351578483,0.6878,3325.8,3325.0,3.65439824]
[1738351578623,0.6803,3325.8,3325.7,6.54398238]
[1738351578819,0.6803,3325.8,3325.7,3.0]
[1738351579038,0.6953,3325.8,3325.7,3.0]
[1738351579234,0.6953,3325.8,3325.3,3.54398238]
[1738351579235,0.015,3325.7,3325.3,3.54398238]
[1738351579922,0.015,3325.7,3325.3,5.07438062]
[1738351581331,0.6803,3326.1,3325.4,0.03006966]
[1738351581543,0.6803,3326.1,3325.7,3.54398238]
[1738351582263,0.0075,3326.0,3325.7,3.54398238]